bitfinex-derivatives/quotes_BTCF0:USTF0_20251002
["timestamp","ask_amount","ask_price","bid_price","bid_amount"]
[1759423201921,4.08896869,119930.0,119920.0,0.15168]
[1759423202124,4.09796869,119930.0,119920.0,0.15268]
[1759423202519,4.09496869,119930.0,119920.0,0.15168]
[1759423203714,4.08896869,119930.0,119920.0,0.15168]
[1759423203923,4.09496869,119930.0,119920.0,0.15168]
[1759423207220,4.1162062,119930.0,119920.0,0.15168]
[1759423207727,4.1162062,119930.0,119920.0,0.12607182]
[1759423207728,4.43896839,119930.0,119920.0,0.12607182]
[1759423208027,0.0833456,119910.0,119900.0,0.01803]
[1759423208220,2.28141836,119910.0,119900.0,0.19803]
[1759423208727,2.25895035,119910.0,119900.0,0.19803]
[1759423209428,2.22899301,119910.0,119900.0,0.19803]
[1759423211831,2.26195035,119910.0,119900.0,0.19803]
[1759423212131,2.26495035,119910.0,119900.0,0.19803]
[1759423212324,2.66495035,119910.0,119900.0,0.19803]
[1759423212525,2.67992903,119910.0,119900.0,0.19803]
[1759423212929,2.70988846,119910.0,119900.0,0.19803]
[1759423213131,2.67992903,119910.0,119900.0,0.19803]
[1759423213328,2.70988473,119910.0,119900.0,0.19803]
[1759423213635,2.67992903,119910.0,119900.0,0.19803]
[1759423214126,1.92268903,119910.0,119900.0,0.19803]
[1759423214333,1.92268903,119910.0,119900.0,0.22677]
[1759423214535,4.37164903,119910.0,119900.0,0.22677]
[1759423214929,4.37168903,119910.0,119900.0,0.19803]
[1759423215232,4.40163909,119910.0,119900.0,0.22677]
[1759423215532,1.18491812,119910.0,119900.0,0.22677]
[1759423215733,3.63395812,119910.0,119900.0,0.22677]
[1759423215935,3.95674307,119910.0,119900.0,0.22677]
[1759423216333,3.95674307,119910.0,119900.0,0.19803]
[1759423216534,3.95074307,119910.0,119900.0,0.19803]
[1759423217642,3.99867909,119910.0,119900.0,0.19803]
[1759423218135,3.99567909,119910.0,119900.0,0.19803]
[1759423218341,3.99867909,119910.0,119900.0,0.19803]
[1759423219440,4.39867909,119910.0,119900.0,0.19803]
[1759423220536,1.94963909,119910.0,119900.0,0.19803]
[1759423220736,1.94963909,119910.0,119900.0,0.22677]
[1759423220935,4.39875909,119910.0,119900.0,0.22677]
[1759423222229,4.32387301,119910.0,119900.0,0.22677]
[1759423222434,4.32387301,119910.0,119900.0,0.19803]
[1759423222837,4.36878093,119910.0,119900.0,0.19803]
[1759423223544,3.72321103,119910.0,119900.0,0.19803]
[1759423223745,4.36878093,119910.0,119900.0,0.19803]
[1759423226736,1.91966093,119910.0,119900.0,0.19803]
[1759423226941,4.36886093,119910.0,119900.0,0.22677]
[1759423227444,1.92066093,119910.0,119900.0,0.19803]
[1759423227638,4.36982093,119910.0,119900.0,0.19803]
[1759423227838,1.92066093,119910.0,119900.0,0.19803]
[1759423228145,4.32095301,119910.0,119900.0,0.19803]
[1759423228342,4.32395301,119910.0,119900.0,0.19803]
[1759423229942,1.87475301,119910.0,119900.0,0.19803]
[1759423230145,4.32391301,119910.0,119900.0,0.22705]
[1759423230550,3.92391301,119910.0,119900.0,0.22705]
[1759423230747,1.47475301,119910.0,119900.0,0.22705]
[1759423230944,3.92391301,119910.0,119900.0,0.22705]
[1759423231347,3.98388232,119910.0,119900.0,0.22705]
[1759423232142,3.96886365,119910.0,119900.0,0.22705]
[1759423233747,3.96890365,119910.0,119900.0,0.22705]
[1759423234948,1.51970365,119910.0,119900.0,0.22705]
[1759423235146,3.96890365,119910.0,119900.0,0.22705]
[1759423235349,1.51970365,119910.0,119900.0,0.22705]
[1759423235749,3.99888015,119910.0,119900.0,0.22705]
[1759423236147,3.96890365,119910.0,119900.0,0.22705]
[1759423236548,1.51970365,119910.0,119900.0,0.22705]
[1759423236846,3.96890365,119910.0,119900.0,0.22705]
[1759423237347,1.51970365,119910.0,119900.0,0.22705]
[1759423237648,3.96890365,119910.0,119900.0,0.22705]
[1759423238157,1.51970365,119910.0,119900.0,0.22705]
[1759423238556,3.96890365,119910.0,119900.0,0.22705]
[1759423239448,3.96890365,119910.0,119900.0,0.19803]
[1759423241066,3.96890365,119910.0,119900.0,0.22705]
[1759423241664,3.96890365,119910.0,119900.0,0.19803]
[1759423249170,4.2916886,119910.0,119900.0,0.19803]
[1759423249374,3.96890365,119910.0,119900.0,0.19803]
[1759423251173,1.51970365,119910.0,119900.0,0.22705]
[1759423251372,3.96882365,119910.0,119900.0,0.22705]
[1759423251982,1.51970365,119910.0,119900.0,0.22705]
[1759423252280,3.96882365,119910.0,119900.0,0.19803]
[1759423252473,1.51970365,119910.0,119900.0,0.22705]
[1759423252776,3.96882365,119910.0,119900.0,0.22705]
[1759423252976,3.92387301,119910.0,119900.0,0.19803]
[1759423253875,1.47475301,119910.0,119900.0,0.19803]
[1759423254077,3.92387301,119910.0,119900.0,0.19803]
[1759423257077,1.47475301,119910.0,119900.0,0.19803]
[1759423257277,3.92383301,119910.0,119900.0,0.22705]
[1759423258481,3.96884624,119910.0,119900.0,0.22705]
[1759423261882,3.96884624,119910.0,119900.0,0.19803]
[1759423263375,3.92383301,119910.0,119900.0,0.19803]
[1759423264283,1.47475301,119910.0,119900.0,0.19803]
[1759423264474,3.92379301,119910.0,119900.0,0.19803]
[1759423264675,3.96880285,119910.0,119900.0,0.19803]
[1759423264976,4.24657796,119910.0,119900.0,0.19803]
[1759423265182,0.0833594,119890.0,119880.0,0.04056088]
[1759423265380,2.25888999,119890.0,119880.0,0.24056088]
[1759423265777,2.30389476,119890.0,119880.0,0.24056088]
[1759423265977,2.37196937,119890.0,119880.0,0.24056088]
[1759423266180,2.34196619,119890.0,119880.0,0.21684928]
[1759423266482,2.34196619,119890.0,119880.0,0.19996928]
[1759423266780,2.64973949,119890.0,119880.0,0.13941248]
[1759423266980,0.0833796,119860.0,119850.0,0.2046]
[1759423267181,1.47178701,119860.0,119850.0,0.2246]
[1759423267380,1.90608206,119860.0,119850.0,0.54738495]
[1759423267885,2.22886701,119860.0,119850.0,0.54738495]
[1759423268079,1.90608206,119860.0,119850.0,0.54738495]
[1759423268385,1.90612206,119860.0,119850.0,0.55238495]
[1759423268777,1.90612206,119860.0,119850.0,0.55738495]
[1759423269481,1.91444125,119860.0,119850.0,0.2346]
[1759423269674,1.91444125,119860.0,119850.0,0.55738495]
[1759423270176,1.91444125,119860.0,119850.0,0.2346]
[1759423270479,1.91459334,119860.0,119850.0,0.2346]
[1759423271282,1.15747334,119860.0,119850.0,0.2346]
[1759423271780,1.91459334,119860.0,119850.0,0.2346]
[1759423272179,2.23753038,119860.0,119850.0,0.2346]
[1759423272681,2.6600225,119860.0,119850.0,0.19]
[1759423272985,2.6600225,119860.0,119850.0,0.05534285]
[1759423273181,0.083394,119840.0,119830.0,0.01696076]
[1759423273382,0.100641,119830.0,119820.0,0.05892449]
[1759423273682,1.54149804,119830.0,119820.0,0.26892449]
[1759423273881,0.78437804,119830.0,119820.0,0.26892449]
[1759423274279,1.541582,119830.0,119820.0,0.26892449]
[1759423274479,0.784462,119830.0,119820.0,0.26892449]
[1759423274679,1.541582,119830.0,119820.0,0.26892449]
[1759423274874,1.541582,119830.0,119820.0,0.27392449]
[1759423275180,1.541582,119830.0,119820.0,0.26892449]
[1759423275381,1.541582,119830.0,119820.0,0.27392449]
[1759423275586,1.541622,119830.0,119820.0,0.27392449]
[1759423276785,1.541622,119830.0,119820.0,0.67392449]
[1759423276786,1.21872496,119830.0,119820.0,0.67392449]
[1759423276985,1.541662,119830.0,119820.0,0.67392449]
[1759423277985,1.60761596,119830.0,119820.0,0.67392449]
[1759423278589,0.83317596,119830.0,119820.0,0.67392449]
[1759423278986,1.26747892,119830.0,119820.0,0.99686153]
[1759423279292,1.28471892,119830.0,119820.0,0.67392449]
[1759423280385,1.60765596,119830.0,119820.0,0.67392449]
[1759423282487,1.60765596,119830.0,119820.0,0.27392449]
[1759423282692,1.60765596,119830.0,119820.0,0.24620449]
[1759423282885,1.60765596,119830.0,119820.0,0.27392449]
[1759423283081,2.341363,119830.0,119820.0,0.22932449]
[1759423283789,1.305383,119830.0,119820.0,0.22932449]
[1759423283995,1.294613,119830.0,119820.0,0.27553449]
[1759423284291,3.72188088,119830.0,119820.0,0.27553449]
[1759423284486,3.72192088,119830.0,119820.0,0.27553449]
[1759423284686,1.27212088,119830.0,119820.0,0.24722449]
[1759423284887,3.72196088,119830.0,119820.0,0.24722449]
[1759423285081,1.27212088,119830.0,119820.0,0.22932449]
[1759423285284,1.27212088,119830.0,119790.0,0.27688]
[1759423285285,0.1124611,119800.0,119790.0,0.30519]
[1759423285583,1.15708307,119800.0,119790.0,0.09519]
[1759423285893,1.59150603,119800.0,119790.0,0.09519]
[1759423286085,0.83414603,119800.0,119790.0,0.09519]
[1759423286280,1.59150603,119800.0,119790.0,0.41812704]
[1759423286482,1.59150603,119800.0,119790.0,0.81812704]
[1759423286689,1.59350603,119800.0,119790.0,0.51419]
[1759423287189,1.92261616,119800.0,119790.0,0.49519]
[1759423287385,1.92461616,119800.0,119790.0,0.51219]
[1759423287691,1.60171912,119800.0,119790.0,0.83512704]
[1759423287891,1.60171912,119800.0,119790.0,0.51219]
[1759423288092,1.60171912,119800.0,119790.0,0.83512704]
[1759423289494,1.60171912,119800.0,119790.0,0.51219]
[1759423291689,1.60171912,119800.0,119790.0,0.83512704]
[1759423292488,1.60171912,119800.0,119790.0,0.51219]
[1759423293992,1.92465616,119800.0,119790.0,0.51219]
[1759423294694,1.60171912,119800.0,119790.0,0.51219]
[1759423294892,1.92465616,119800.0,119790.0,0.067]
[1759423295288,1.62336188,119800.0,119790.0,0.067]
[1759423295496,1.94629892,119800.0,119790.0,0.067]
[1759423297193,3.63929892,119800.0,119790.0,0.11411]
[1759423298092,0.86596188,119800.0,119790.0,0.11411]
[1759423298297,3.63933892,119800.0,119790.0,0.11411]
[1759423298486,1.18889882,119800.0,119790.0,0.11411]
[1759423298690,0.86596178,119800.0,119790.0,0.11411]
[1759423298896,1.62344178,119800.0,119790.0,0.11411]
[1759423299089,1.62344178,119800.0,119790.0,0.43704704]
[1759423299289,0.86596178,119800.0,119790.0,0.11411]
[1759423299496,0.76089802,119800.0,119790.0,0.83704704]
[1759423299698,1.51837802,119800.0,119790.0,0.83704704]
[1759423300197,0.73185802,119800.0,119790.0,1.15998408]
[1759423300395,1.48116493,119800.0,119790.0,1.15998408]
[1759423300594,1.48116493,119800.0,119790.0,0.83704704]
[1759423300999,0.75956493,119800.0,119790.0,0.92047504]
[1759423301597,0.00208493,119800.0,119790.0,1.24341208]
[1759423301906,0.75956493,119800.0,119790.0,1.24341208]
[1759423302102,0.00208493,119800.0,119790.0,1.60421208]
[1759423302301,0.75956493,119800.0,119790.0,1.20421208]
[1759423302597,0.00208493,119800.0,119790.0,1.21266819]
[1759423302799,0.45276579,119820.0,119810.0,0.04711]
[1759423302997,1.23876579,119820.0,119810.0,0.57004704]
[1759423303198,1.23876579,119820.0,119810.0,0.24711]
[1759423303907,1.26008727,119820.0,119810.0,0.24711]
[1759423304205,1.26108727,119820.0,119810.0,0.25511]
[1759423304396,1.58402431,119820.0,119810.0,0.25511]
[1759423304795,1.26008727,119820.0,119810.0,0.24711]
[1759423305101,1.23876579,119820.0,119810.0,0.24711]
[1759423305296,1.23876579,119820.0,119810.0,0.25611]
[1759423305297,1.26109758,119820.0,119810.0,0.25611]
[1759423306099,1.56270283,119820.0,119810.0,0.25611]
[1759423306401,1.5840335,119820.0,119810.0,0.209]
[1759423306604,2.30697054,119820.0,119810.0,0.209]
[1759423307199,1.66109646,119820.0,119810.0,0.209]
[1759423307401,2.30697054,119820.0,119810.0,0.209]
[1759423308807,2.32933615,119820.0,119810.0,0.209]
[1759423309700,1.24891911,119820.0,119810.0,0.209]
[1759423309907,2.95401646,119820.0,119810.0,0.25611]
[1759423310402,3.2769535,119820.0,119810.0,0.25611]
[1759423310603,0.50361646,119820.0,119810.0,0.25611]
[1759423310803,1.5839935,119820.0,119810.0,0.25611]
[1759423312001,1.26105646,119820.0,119810.0,0.25611]
[1759423312200,1.28342207,119820.0,119810.0,0.25611]
[1759423312400,1.60635911,119820.0,119810.0,0.25611]
[1759423312801,0.84891911,119820.0,119810.0,0.25611]
[1759423313003,0.52598207,119820.0,119810.0,0.25611]
[1759423313205,1.17149107,119820.0,119810.0,0.97904704]
[1759423313394,1.25489807,119820.0,119810.0,0.97904704]
[1759423314103,1.28341807,119820.0,119810.0,0.97904704]
[1759423314508,1.28341807,119820.0,119810.0,0.65611]
[1759423314701,1.26105246,119820.0,119810.0,0.97904704]
[1759423314901,1.26105246,119820.0,119810.0,0.65611]
[1759423315105,1.28341807,119820.0,119810.0,0.65611]
[1759423315303,0.50361246,119820.0,119810.0,0.65611]
[1759423315606,1.26105246,119820.0,119810.0,0.97904704]
[1759423316803,0.5036292,119820.0,119810.0,0.97904704]
[1759423317210,1.2325492,119820.0,119810.0,0.97904704]
[1759423317902,0.1143092,119820.0,119810.0,0.97904704]
[1759423318109,1.2325492,119820.0,119810.0,0.97904704]
[1759423318705,1.2325492,119820.0,119810.0,0.65611]
[1759423318905,1.2325492,119820.0,119810.0,0.97904704]
[1759423319106,1.22399441,119820.0,119810.0,0.97904704]
[1759423320111,0.46655441,119820.0,119810.0,0.97904704]
[1759423320305,1.22399441,119820.0,119810.0,0.97904704]
[1759423320519,1.22399441,119820.0,119810.0,0.65611]
[1759423320708,1.22399441,119820.0,119810.0,0.97904704]
[1759423320909,1.22399441,119820.0,119810.0,0.65611]
[1759423321211,1.22399441,119820.0,119810.0,0.97904704]
[1759423322009,0.46655441,119820.0,119810.0,1.06246234]
[1759423322209,1.202607,119820.0,119810.0,1.06246234]
[1759423322712,1.202607,119820.0,119810.0,0.97904704]
[1759423323613,1.230987,119820.0,119810.0,0.97904704]
[1759423324615,0.473587,119820.0,119810.0,0.97904704]
[1759423324816,1.230987,119820.0,119810.0,0.97904704]
[1759423325611,1.230987,119820.0,119810.0,0.65611]
[1759423325807,1.57526278,119820.0,119810.0,0.25611]
[1759423327014,1.25232574,119820.0,119810.0,0.25611]
[1759423327417,1.25232574,119820.0,119810.0,0.25211]
[1759423328417,1.57426278,119820.0,119810.0,0.2]
[1759423328806,1.57426278,119820.0,119810.0,0.24898]
[1759423328807,1.57526278,119820.0,119810.0,0.24898]
[1759423329417,1.25228574,119820.0,119810.0,0.57191704]
[1759423329718,1.14049874,119820.0,119810.0,0.57191704]
[1759423330018,1.22390704,119820.0,119810.0,0.57191704]
[1759423330319,1.22390704,119820.0,119810.0,0.57204865]
[1759423331211,0.46654704,119820.0,119810.0,0.24898]
[1759423331517,1.22390704,119820.0,119810.0,0.57204865]
[1759423331714,1.25228704,119820.0,119810.0,0.24898]
[1759423331920,1.22390704,119820.0,119810.0,0.57204865]
[1759423332118,1.25228704,119820.0,119810.0,0.24898]
[1759423332312,1.25228704,119820.0,119810.0,0.57204865]
[1759423332507,1.25228704,119820.0,119810.0,0.24898]
[1759423332712,1.25228704,119820.0,119810.0,0.57204865]
[1759423333220,1.57535569,119820.0,119810.0,0.24898]
[1759423333519,1.57535569,119820.0,119810.0,0.57204865]
[1759423333709,1.89842434,119820.0,119810.0,0.24898]
[1759423333913,1.57535569,119820.0,119810.0,0.57204865]
[1759423334920,0.81799569,119820.0,119810.0,0.57204865]
[1759423335113,1.57535569,119820.0,119810.0,0.57204865]
[1759423335313,1.22390704,119820.0,119810.0,0.57204865]
[1759423335511,1.22390704,119820.0,119810.0,0.24898]
[1759423335809,1.91169434,119820.0,119810.0,0.204]
[1759423336918,2.31169434,119820.0,119810.0,0.204]
[1759423337915,2.63476299,119820.0,119810.0,0.204]
[1759423338116,2.31169434,119820.0,119810.0,0.204]
[1759423338316,2.09205643,119820.0,119810.0,0.204]
[1759423339022,2.09105643,119820.0,119810.0,0.19791507]
[1759423339319,2.12104593,119820.0,119810.0,0.10971507]
[1759423339516,2.10777593,119820.0,119810.0,0.01673]
[1759423339713,2.10777593,119820.0,119810.0,0.11673]
[1759423339923,1.35041593,119820.0,119810.0,0.11673]
[1759423340219,3.80265593,119820.0,119810.0,0.11873]
[1759423340521,3.77266643,119820.0,119810.0,0.11873]
[1759423340824,3.77574643,119820.0,119810.0,0.11773]
[1759423341016,3.37167075,119820.0,119810.0,0.11773]
[1759423341319,3.37574643,119820.0,119810.0,0.11773]
[1759423341524,3.37574643,119820.0,119810.0,0.11673]
[1759423341525,0.92042643,119820.0,119810.0,0.11673]
[1759423341724,0.92542643,119820.0,119810.0,0.14598]
[1759423341927,3.37578643,119820.0,119810.0,0.14598]
[1759423342120,3.37578643,119820.0,119810.0,0.11773]
[1759423342321,3.38335222,119820.0,119810.0,0.11773]
[1759423343124,3.42835699,119820.0,119810.0,0.11773]
[1759423343422,3.38335222,119820.0,119810.0,0.11773]
[1759423343823,3.42835699,119820.0,119810.0,0.11773]
[1759423344220,3.38335222,119820.0,119810.0,0.11773]
[1759423344620,0.93299222,119820.0,119810.0,0.11773]
[1759423344822,3.38343222,119820.0,119810.0,0.11773]
[1759423345221,2.97935654,119820.0,119810.0,0.11773]
[1759423345424,3.38343222,119820.0,119810.0,0.11773]
[1759423345624,3.38347222,119820.0,119810.0,0.11773]
[1759423345829,0.93299222,119820.0,119810.0,0.11773]
[1759423346028,3.38347222,119820.0,119810.0,0.11773]
[1759423348028,3.38347222,119820.0,119810.0,0.0524196]
[1759423348328,3.38347222,119820.0,119810.0,0.0692096]
[1759423348828,0.93299222,119820.0,119810.0,0.0692096]
[1759423349125,3.38351222,119820.0,119810.0,0.0692096]
[1759423350329,0.93299222,119820.0,119810.0,0.0692096]
[1759423350525,3.38359222,119820.0,119810.0,0.0692096]
[1759423350722,0.93299222,119820.0,119810.0,0.0692096]
[1759423351027,1.28639654,119820.0,119810.0,0.0692096]
[1759423351224,3.38359222,119820.0,119810.0,0.0692096]
[1759423352527,3.78359222,119820.0,119810.0,0.0692096]
[1759423353630,3.37951654,119820.0,119810.0,0.0692096]
[1759423353818,3.78359222,119820.0,119810.0,0.0692096]
[1759423354018,3.78359222,119820.0,119810.0,0.0800001]
[1759423354218,3.78359222,119820.0,119810.0,0.0167901]
[1759423354523,1.33299222,119820.0,119810.0,0.0484167]
[1759423354820,3.78375222,119820.0,119810.0,1e-07]
[1759423355024,3.78375222,119820.0,119810.0,0.0567029]
[1759423355221,2.09059222,119820.0,119810.0,0.0567029]
[1759423355432,3.78383222,119820.0,119810.0,0.0567029]
[1759423355730,2.62615222,119820.0,119810.0,0.0838629]
[1759423355929,3.38383222,119820.0,119810.0,0.0838629]
[1759423356129,0.93299222,119820.0,119810.0,0.0567029]
[1759423356332,3.38379222,119820.0,119810.0,0.0567029]
[1759423356736,0.93299222,119820.0,119810.0,0.0838629]
[1759423357033,3.37619085,119820.0,119810.0,0.0838629]
[1759423357227,3.40622035,119820.0,119810.0,0.0838629]
[1759423357527,3.37623085,119820.0,119810.0,0.0838629]
[1759423357728,0.95538035,119820.0,119810.0,0.0838629]
[1759423357928,3.40622035,119820.0,119810.0,0.0838629]
[1759423358131,0.95538035,119820.0,119810.0,0.0838629]
[1759423358330,2.24446467,119820.0,119810.0,0.0838629]
[1759423358532,2.94381517,119820.0,119810.0,0.4838629]
[1759423358830,0.47054704,119820.0,119810.0,0.88793858]
[1759423359040,1.22850704,119820.0,119810.0,0.88793858]
[1759423359431,1.22850704,119820.0,119810.0,0.4838629]
[1759423359730,1.22850704,119820.0,119810.0,0.88793858]
[1759423361725,1.22850704,119820.0,119810.0,1.02188858]
[1759423361929,0.10974704,119820.0,119810.0,1.02188858]
[1759423362231,0.76284,119820.0,119810.0,1.02188858]
[1759423362436,0.8462483,119820.0,119810.0,0.63802568]
[1759423363433,0.8422483,119820.0,119810.0,0.64202568]
[1759423363634,0.0854083,119820.0,119810.0,1.04602568]
[1759423363834,0.8431683,119820.0,119810.0,1.04602568]
[1759423364223,0.8431683,119820.0,119810.0,0.64602568]
[1759423364424,0.8431683,119820.0,119810.0,0.24195]
[1759423364425,0.8718483,119820.0,119810.0,0.24195]
[1759423364627,1.63672398,119820.0,119810.0,0.24195]
[1759423364831,1.2326483,119820.0,119810.0,0.24195]
[1759423365129,1.63672398,119820.0,119810.0,0.24195]
[1759423365330,1.63672398,119820.0,119810.0,0.64195]
[1759423365529,1.63672398,119820.0,119810.0,0.24195]
[1759423365530,1.65286108,119820.0,119810.0,0.24195]
[1759423365836,1.2487854,119820.0,119810.0,0.24195]
[1759423366032,1.2326483,119820.0,119810.0,0.64195]
[1759423366232,1.2327683,119820.0,119810.0,0.64195]
[1759423366529,1.63684398,119820.0,119810.0,0.64195]
[1759423366731,1.65298108,119820.0,119810.0,0.198]
[1759423366936,2.05298108,119820.0,119810.0,0.198]
[1759423370038,0.8910254,119820.0,119810.0,0.198]
[1759423370237,3.34762108,119820.0,119810.0,0.198]
[1759423370939,0.89510108,119820.0,119810.0,0.198]
[1759423371445,2.58810108,119820.0,119810.0,0.24195]
[1759423371632,3.34770108,119820.0,119810.0,0.24195]
[1759423371834,3.34770108,119820.0,119810.0,0.198]
[1759423372137,2.9436254,119820.0,119810.0,0.198]
[1759423372442,3.34770108,119820.0,119810.0,0.198]
[1759423372641,3.74770108,119820.0,119810.0,0.198]
[1759423372838,3.74770108,119820.0,119810.0,0.24195]
[1759423373342,2.58810108,119820.0,119810.0,0.24195]
[1759423373541,3.34762108,119820.0,119810.0,0.24195]
[1759423373741,0.89510108,119820.0,119810.0,0.24195]
[1759423373943,2.0719771,119820.0,119810.0,0.24195]
[1759423374142,2.0719771,119820.0,119810.0,0.64195]
[1759423374143,2.9275282,119820.0,119810.0,0.64195]
[1759423374335,3.33160388,119820.0,119810.0,0.24195]
[1759423377244,3.34774098,119820.0,119810.0,0.198]
[1759423377437,3.34774098,119820.0,119810.0,0.24242]
[1759423380251,1.65526098,119820.0,119810.0,0.24242]
[1759423382844,0.89510098,119820.0,119810.0,0.24242]
[1759423383048,1.65494098,119820.0,119810.0,0.24242]
[1759423385250,1.65494098,119820.0,119810.0,0.198]
[1759423386054,1.27245436,119820.0,119810.0,0.198]
[1759423386252,1.67653004,119820.0,119810.0,0.198]
[1759423386755,1.27245436,119820.0,119810.0,0.198]
[1759423386954,1.67653004,119820.0,119810.0,0.198]
[1759423387760,3.36929004,119820.0,119810.0,0.24242]
[1759423388252,3.36929004,119820.0,119810.0,0.198]
[1759423388453,3.36929004,119820.0,119810.0,0.22582]
[1759423388960,3.36929004,119820.0,119810.0,0.198]
[1759423390155,3.36909004,119820.0,119810.0,0.198]
[1759423390356,3.31617602,119820.0,119810.0,0.198]
[1759423390753,0.51261436,119820.0,119810.0,0.24242]
[1759423390955,0.86377602,119820.0,119810.0,0.24242]
[1759423391158,3.31613602,119820.0,119810.0,0.24242]
[1759423392160,0.51261436,119820.0,119810.0,0.24242]
[1759423392463,3.31601602,119820.0,119810.0,0.24242]
[1759423393155,0.86377602,119820.0,119810.0,0.24242]
[1759423393357,2.96485436,119820.0,119810.0,0.24242]
[1759423393551,2.96501436,119820.0,119810.0,0.24242]
[1759423394458,1.27209436,119820.0,119810.0,0.24242]
[1759423395557,0.49647726,119820.0,119810.0,0.64242]
[1759423395754,1.25583726,119820.0,119810.0,0.64242]
[1759423396156,1.60699892,119820.0,119810.0,0.64242]
[1759423398767,0.84763892,119820.0,119810.0,0.64242]
[1759423398958,1.60679892,119820.0,119810.0,0.64242]
[1759423399558,1.25563726,119820.0,119810.0,0.64242]
[1759423401162,1.25547726,119820.0,119810.0,0.64242]
[1759423401869,1.25543726,119820.0,119810.0,0.64242]
[1759423402070,1.25539726,119820.0,119810.0,0.64242]
[1759423402572,0.49647726,119820.0,119810.0,0.64242]
[1759423402771,1.25535726,119820.0,119810.0,0.64242]
[1759423403469,0.49647726,119820.0,119810.0,0.64242]
[1759423403673,1.27149436,119820.0,119810.0,0.24242]
[1759423407076,0.51261436,119820.0,119810.0,0.24242]
[1759423407268,1.27129436,119820.0,119810.0,0.24242]
[1759423408074,0.51261436,119820.0,119810.0,0.24242]
[1759423408370,1.27113436,119820.0,119810.0,0.24242]
[1759423408868,0.51261436,119820.0,119810.0,0.24242]
[1759423409377,0.4462082,119820.0,119810.0,0.7258352]
[1759423409569,0.4462082,119820.0,119810.0,0.99358166]
[1759423410176,1.2048882,119820.0,119810.0,0.99358166]
[1759423410372,1.2048882,119820.0,119810.0,0.64242]
[1759423410576,0.4462082,119820.0,119810.0,0.7258352]
[1759423410768,0.0854082,119820.0,119810.0,1.07699686]
[1759423411269,0.8441282,119820.0,119810.0,0.64242]
[1759423411474,1.2348782,119820.0,119810.0,0.64242]
[1759423411875,1.2049282,119820.0,119810.0,0.7258352]
[1759423412372,1.2029282,119820.0,119810.0,0.7178352]
[1759423412571,1.2029282,119820.0,119810.0,1.0409063]
[1759423412773,1.22464714,119820.0,119810.0,1.0409063]
[1759423414278,1.22464714,119820.0,119810.0,0.7178352]
[1759423414674,1.22464714,119820.0,119810.0,1.0409063]
[1759423416078,0.46592714,119820.0,119810.0,1.0409063]
[1759423416273,1.22432292,119820.0,119810.0,1.0409063]
[1759423416469,0.46592292,119820.0,119810.0,1.0409063]
[1759423416676,1.22432292,119820.0,119810.0,1.0409063]
[1759423418181,0.86352292,119820.0,119810.0,1.0409063]
[1759423418375,0.86352292,119820.0,119810.0,0.63442]
[1759423418570,1.91655222,119820.0,119810.0,0.23442]
[1759423418772,1.91655222,119820.0,119810.0,0.19]
[1759423419280,1.27041002,119820.0,119810.0,0.21984]
[1759423419479,1.91655222,119820.0,119810.0,0.23667]
[1759423419674,1.939006,119820.0,119810.0,0.23667]
[1759423420380,1.941006,119820.0,119810.0,0.23667]
[1759423420576,1.939006,119820.0,119810.0,0.23667]
[1759423420782,1.940006,119820.0,119810.0,0.23667]
[1759423421281,1.939006,119820.0,119810.0,0.23667]
[1759423421489,1.939006,119820.0,119810.0,0.23867]
[1759423422087,1.6159349,119820.0,119810.0,0.23867]
[1759423422276,1.59348112,119820.0,119810.0,0.23867]
[1759423422581,1.57734402,119820.0,119810.0,0.23867]
[1759423423483,1.25427292,119820.0,119810.0,0.23867]
[1759423423783,1.25403292,119820.0,119810.0,0.23867]
[1759423423984,1.57710402,119820.0,119810.0,0.23867]
[1759423424581,1.27017002,119820.0,119810.0,0.3220852]
[1759423424777,1.27017002,119820.0,119810.0,0.5617411]
[1759423424977,1.27017002,119820.0,119810.0,0.23867]
[1759423424978,0.51201002,119820.0,119810.0,0.23867]
[1759423425177,0.39865182,119820.0,119810.0,0.6451563]
[1759423425377,0.39865182,119820.0,119810.0,1.0451563]
[1759423425579,1.2184653,119820.0,119810.0,1.0451563]
[1759423425974,0.3769371,119820.0,119810.0,1.0451563]
[1759423426281,1.2185053,119820.0,119810.0,1.0451563]
[1759423426587,0.4603453,119820.0,119810.0,1.0451563]
[1759423426776,1.2185053,119820.0,119810.0,1.0451563]
[1759423426972,1.2023282,119820.0,119810.0,1.0451563]
[1759423428286,0.8415282,119820.0,119810.0,1.0451563]
[1759423428790,0.0834082,119820.0,119810.0,1.0451563]
[1759423428986,0.8414082,119820.0,119810.0,1.0451563]
[1759423429283,0.0834082,119820.0,119810.0,1.0451563]
[1759423429690,0.8414082,119820.0,119810.0,1.0451563]
[1759423430187,0.8414082,119820.0,119810.0,0.7220852]
[1759423430382,0.8414082,119820.0,119810.0,1.0451563]
[1759423430578,0.43465964,119830.0,119810.0,1.0451563]
[1759423430786,0.02169769,119830.0,119820.0,0.7762204]
[1759423431086,0.75796,119830.0,119820.0,1.44679758]
[1759423431282,0.75796,119830.0,119820.0,1.80759758]
[1759423431481,0.4441987,119840.0,119830.0,0.0834013]
[1759423431683,1.2238652,119840.0,119830.0,0.6431424]
[1759423432492,1.2248652,119840.0,119830.0,0.6501424]
[1759423432791,1.2247852,119840.0,119830.0,0.6501424]
[1759423434079,1.2237852,119840.0,119830.0,0.6431424]
[1759423434284,0.7805865,119840.0,119830.0,0.6501424]
[1759423434992,0.78885828,119840.0,119830.0,0.6501424]
[1759423435187,0.03093828,119840.0,119830.0,0.6501424]
[1759423435386,0.84856301,119840.0,119830.0,0.6501424]
[1759423435592,0.09080301,119840.0,119830.0,0.6501424]
[1759423435794,0.84852301,119840.0,119830.0,0.6501424]
[1759423436589,0.09080301,119840.0,119830.0,0.6501424]
[1759423436996,0.84840301,119840.0,119830.0,0.6501424]
[1759423437396,0.93179731,119840.0,119830.0,0.6501424]
[1759423437696,0.96174731,119840.0,119830.0,0.6501424]
[1759423438995,0.8636608,119840.0,119830.0,0.6501424]
[1759423441400,0.8930808,119840.0,119830.0,0.6501424]
[1759423442391,0.0226665,119840.0,119830.0,0.6501424]
[1759423442594,0.7802265,119840.0,119830.0,0.6501424]
[1759423442803,0.8636208,119840.0,119830.0,0.6501424]
[1759423443104,0.8930408,119840.0,119830.0,0.6501424]
[1759423444802,0.8930408,119840.0,119830.0,0.3270713]
[1759423445104,0.8930408,119840.0,119830.0,0.2804013]
[1759423445105,1.608699,119840.0,119830.0,0.2804013]
[1759423445304,1.2699779,119840.0,119830.0,0.6488724]
[1759423445598,0.5124179,119840.0,119830.0,0.6488724]